fUSD/lending_fUSD_20250223
["ID","MTS","AMOUNT","RATE_DAILY","PERIOD"]
[354222626,1740352247632,-505.39,0.00016602,2]
[354222628,1740352247641,-1108.04,0.00016602,2]
[354222630,1740352247650,-500.0,0.00016602,2]
[354222632,1740352247660,-500.95,0.00016602,2]
[354222634,1740352247669,-728.91,0.00016602,2]
[354222636,1740352247678,-500.0,0.00016602,2]
[354222638,1740352247687,-1438.01,0.00016602,2]
[354222640,1740352247696,-1771.05,0.00016602,2]
[354222642,1740352247705,-500.0,0.00016602,2]
[354222644,1740352247714,-961.5,0.00016602,2]
[354222646,1740352247723,-558.2,0.00016602,2]
[354222648,1740352247732,-500.0,0.00016602,2]
[354222650,1740352247741,-500.0,0.00016602,2]
[354222652,1740352247750,-500.0,0.00016602,2]
[354222654,1740352247759,-1006.24,0.00016602,2]
[354222656,1740352247768,-500.0,0.00016602,2]
[354222658,1740352247777,-602.93,0.00016602,2]
[354222660,1740352247786,-500.0,0.00016602,2]
[354222662,1740352247795,-500.0,0.00016602,2]
[354222664,1740352247804,-500.0,0.00016602,2]
[354222666,1740352247813,-500.0,0.00016602,2]
[354222668,1740352247823,-495.4471,0.00016602,2]
[354222670,1740352247832,-500.0,0.00016602,2]
[354222672,1740352247841,-1173.51,0.00016602,2]
[354222674,1740352247851,-500.0,0.00016602,2]
[354222676,1740352247860,-500.0,0.00016602,2]
[354222678,1740352247869,-1934.16,0.00016602,2]
[354222680,1740352247878,-1088.29,0.00016602,2]
[354222682,1740352247887,-1140.14,0.00016602,2]
[354222684,1740352247897,-526.69568575,0.00016602,2]
[354222686,1740352247906,-500.0,0.00016602,2]
[354222688,1740352247915,-714.76,0.00016602,2]
[354222690,1740352247925,-888.13,0.00016602,2]
[354222692,1740352247934,-662.54,0.00016602,2]
[354222694,1740352247943,-500.0,0.00016602,2]
[354222696,1740352247952,-500.0,0.00016602,2]
[354222698,1740352247961,-500.0,0.00016602,2]
[354222700,1740352247970,-1209.93,0.00016602,2]
[354222702,1740352247979,-500.0,0.00016602,2]
[354222704,1740352247989,-887.25,0.00016602,2]
[354222706,1740352247998,-635.07,0.00016602,2]
[354222708,1740352248007,-500.0,0.00016602,2]
[354222710,1740352248016,-391.27577865,0.00016602,2]
[354222712,1740352248025,-906.08,0.00016602,2]
[354222714,1740352248034,-500.0,0.00016602,2]
[354222716,1740352248043,-500.0,0.00016602,2]
[354222718,1740352248053,-1368.52,0.00016602,2]
[354222719,1740352248062,-500.0,0.00016602,2]
[354222720,1740352248071,-544.66,0.00016602,2]
[354222721,1740352248082,-500.0,0.00016602,2]
[354222722,1740352248091,-790.31,0.00016602,2]
[354222723,1740352248100,-1058.64,0.00016602,2]
[354222724,1740352248109,-1175.32,0.00016602,2]
[354222725,1740352248118,-897.85,0.00016602,2]
[354222727,1740352248127,-500.0,0.00016602,2]
[354222728,1740352248137,-500.0,0.00016602,2]
[354222729,1740352248146,-500.0,0.00016602,2]
[354222730,1740352248156,-500.0,0.00016602,2]
[354222732,1740352248165,-1230.76,0.00016602,2]
[354222734,1740352248175,-1372.08,0.00016602,2]
[354222735,1740352248184,-500.0,0.00016602,2]
[354222736,1740352248194,-958.26,0.00016602,2]
[354222737,1740352248203,-500.0,0.00016602,2]
[354222738,1740352248213,-236.16466723,0.00016602,2]
[354222739,1740352248222,-1133.7,0.00016602,2]
[354222740,1740352248232,-547.77,0.00016602,2]
[354222741,1740352248241,-528.25,0.00016602,2]
[354222742,1740352248251,-816.84,0.00016602,2]
[354222743,1740352248261,-500.0,0.00016602,2]
[354222744,1740352248271,-821.79,0.00016602,2]
[354222745,1740352248280,-500.0,0.00016602,2]
[354222746,1740352248290,-500.0,0.00016602,2]
[354222747,1740352248299,-500.0,0.00016602,2]
[354222748,1740352248308,-500.0,0.00016602,2]
[354222749,1740352248317,-1028.74,0.00016602,2]
[354222750,1740352248326,-959.94,0.00016602,2]
[354222751,1740352248335,-1776.38,0.00016602,2]
[354222752,1740352248345,-1447.83,0.00016602,2]
[354222753,1740352248355,-500.0,0.00016602,2]
[354222754,1740352248364,-500.0,0.00016602,2]
[354222755,1740352248377,-500.0,0.00016602,2]
[354222756,1740352248386,-751.84,0.00016602,2]
[354222757,1740352248395,-761.16,0.00016602,2]
[354222758,1740352248404,-500.0,0.00016602,2]
[354222759,1740352248414,-813.26,0.00016602,2]
[354222760,1740352248424,-1058.56,0.00016602,2]
[354222761,1740352248433,-815.73,0.00016602,2]
[354222762,1740352248442,-500.0,0.00016602,2]
[354222763,1740352248453,-500.0,0.00016602,2]
[354222764,1740352248463,-696.88,0.00016602,2]
[354222765,1740352248472,-527.2,0.00016602,2]
[354222766,1740352248482,-910.19,0.00016602,2]
[354222767,1740352248490,-1913.05,0.00016602,2]
[354222768,1740352248500,-669.04,0.00016602,2]
[354222769,1740352248509,-1110.92,0.00016602,2]
[354222770,1740352248518,-1183.22,0.00016602,2]
[354222771,1740352248527,-500.0,0.00016602,2]
[354222772,1740352248537,-500.0,0.00016602,2]
[354222773,1740352248546,-500.0,0.00016602,2]
[354222774,1740352248555,-500.0,0.00016602,2]
[354222775,1740352248564,-500.0,0.00016602,2]
[354222776,1740352248573,-1240.78,0.00016602,2]
[354222777,1740352248582,-879.3,0.00016602,2]
[354222778,1740352248592,-500.0,0.00016602,2]
[354222779,1740352248601,-1767.26,0.00016602,2]
[354222780,1740352248610,-967.57,0.00016602,2]
[354222781,1740352248619,-1994.53,0.00016602,2]
[354222782,1740352248628,-500.0,0.00016602,2]
[354222783,1740352248637,-1000.31,0.00016602,2]
[354222784,1740352248646,-875.12,0.00016602,2]
[354222785,1740352248655,-908.59,0.00016602,2]
[354222786,1740352248665,-500.0,0.00016602,2]
[354222787,1740352248674,-702.63,0.00016602,2]
[354222788,1740352248683,-777.1,0.00016602,2]
[354222789,1740352248692,-500.0,0.00016602,2]
[354222790,1740352248701,-190.949618,0.00016602,2]
[354222791,1740352248711,-500.0,0.00016602,2]
[354222792,1740352248719,-1364.58,0.00016602,2]
[354222793,1740352248729,-956.09,0.00016602,2]
[354222794,1740352248738,-500.0,0.00016602,2]
[354222795,1740352248748,-500.0,0.00016602,2]
[354222796,1740352248756,-985.86,0.00016602,2]
[354222797,1740352248766,-533.65,0.00016602,2]
[354222798,1740352248775,-500.0,0.00016602,2]
[354222799,1740352248784,-518.47,0.00016602,2]
[354222800,1740352248794,-1144.86,0.00016602,2]
[354222801,1740352248802,-500.0,0.00016602,2]
[354222802,1740352248811,-526.47,0.00016602,2]
[354222803,1740352248821,-250.298795,0.00016602,2]
[354222804,1740352248830,-1709.74,0.00016602,2]
[354222805,1740352248839,-500.0,0.00016602,2]
[354222806,1740352248849,-500.0,0.00016602,2]
[354222807,1740352248859,-769.14,0.00016602,2]
[354222808,1740352248869,-864.95,0.00016602,2]
[354222809,1740352248878,-500.0,0.00016602,2]
[354222810,1740352248888,-1867.05,0.00016602,2]
[354222811,1740352248898,-188.71792046,0.00016602,2]
[354222812,1740352248907,-500.0,0.00016602,2]
[354222813,1740352248917,-500.0,0.00016602,2]
[354222814,1740352248926,-974.3,0.00016602,2]
[354222815,1740352248936,-613.44,0.00016602,2]
[354222816,1740352248946,-923.63,0.00016602,2]
[354222817,1740352248955,-815.98,0.00016602,2]
[354222818,1740352248965,-500.0,0.00016602,2]
[354222819,1740352248975,-665.57,0.00016602,2]
[354222820,1740352248985,-500.0,0.00016602,2]
[354222821,1740352248994,-1761.7,0.00016602,2]
[354222822,1740352249004,-500.0,0.00016602,2]
[354222823,1740352249014,-500.0,0.00016602,2]
[354222824,1740352249025,-620.02,0.00016602,2]
[354222825,1740352249035,-384.52142103,0.00016602,2]
[354222826,1740352249045,-1560.99,0.00016602,2]
[354222827,1740352249055,-1356.13,0.00016602,2]
[354222828,1740352249065,-500.0,0.00016602,2]
[354222829,1740352249075,-500.0,0.00016602,2]
[354222830,1740352249086,-817.19,0.00016602,2]
[354222831,1740352249096,-500.0,0.00016602,2]
[354222832,1740352249105,-500.0,0.00016602,2]
[354222833,1740352249115,-1549.91,0.00016602,2]
[354222834,1740352249125,-500.0,0.00016602,2]
[354222835,1740352249135,-1001.47,0.00016602,2]
[354222836,1740352249145,-500.0,0.00016602,2]
[354222837,1740352249156,-500.0,0.00016602,2]
[354222838,1740352249166,-500.0,0.00016602,2]
[354222839,1740352249176,-2324.01,0.00016602,2]
[354222840,1740352249186,-500.0,0.00016602,2]
[354222841,1740352249197,-500.0,0.00016602,2]
[354222842,1740352249207,-500.0,0.00016602,2]
[354222843,1740352249217,-500.0,0.00016602,2]
[354222844,1740352249228,-511.66,0.00016602,2]
[354222845,1740352249238,-500.0,0.00016602,2]
[354222846,1740352249248,-1794.41,0.00016602,2]
[354222847,1740352249258,-500.0,0.00016602,2]
[354222848,1740352249268,-1129.65,0.00016602,2]
[354222849,1740352249278,-500.0,0.00016602,2]
[354222850,1740352249288,-500.0,0.00016602,2]
[354222851,1740352249298,-500.0,0.00016602,2]
[354222852,1740352249308,-500.0,0.00016602,2]
[354222853,1740352249318,-500.0,0.00016602,2]
[354222854,1740352249328,-625.01,0.00016602,2]
[354222855,1740352249338,-500.0,0.00016602,2]
[354222856,1740352249349,-165.214595,0.00016602,2]
[354222857,1740352249359,-500.0,0.00016602,2]
[354222858,1740352249373,-500.0,0.00016602,2]
[354222859,1740352249383,-500.0,0.00016602,2]
[354222860,1740352249394,-500.0,0.00016602,2]
[354222861,1740352249404,-500.0,0.00016602,2]
[354222862,1740352249415,-1397.93,0.00016602,2]
[354222863,1740352249425,-500.0,0.00016602,2]
[354222864,1740352249435,-546.2,0.00016602,2]
[354222865,1740352249447,-500.0,0.00016602,2]
[354222866,1740352249457,-981.89,0.00016602,2]
[354222867,1740352249469,-805.33,0.00016602,2]
[354222868,1740352249479,-523.09,0.00016602,2]
[354222869,1740352249490,-500.0,0.00016602,2]
[354222870,1740352249500,-456.49652863,0.00016602,2]
[354222871,1740352249510,-506.5,0.00016602,2]
[354222872,1740352249520,-500.0,0.00016602,2]
[354222873,1740352249530,-500.0,0.00016602,2]
[354222874,1740352249540,-500.0,0.00016602,2]
[354222875,1740352249550,-1134.74,0.00016602,2]
[354222876,1740352249560,-500.0,0.00016602,2]
[354222877,1740352249571,-419.81010089,0.00016602,2]
[354222878,1740352249581,-500.0,0.00016602,2]
[354222879,1740352249591,-500.0,0.00016602,2]
[354222880,1740352249601,-500.0,0.00016602,2]
[354222881,1740352249612,-883.27,0.00016602,2]
[354222882,1740352249622,-1106.94,0.00016602,2]
[354222883,1740352249632,-500.0,0.00016602,2]
[354222884,1740352249642,-1128.08,0.00016602,2]
[354222885,1740352249652,-500.0,0.00016602,2]
[354222886,1740352249662,-500.0,0.00016602,2]
[354222887,1740352249672,-500.0,0.00016602,2]
[354222888,1740352249684,-500.0,0.00016602,2]
[354222889,1740352249694,-634.06,0.00016602,2]
[354222890,1740352249705,-500.0,0.00016602,2]
[354222891,1740352249716,-662.87,0.00016602,2]
[354222892,1740352249726,-500.0,0.00016602,2]
[354222893,1740352249736,-837.17,0.00016602,2]
[354222894,1740352249747,-500.0,0.00016602,2]
[354222895,1740352249759,-597.91,0.00016602,2]
[354222896,1740352249770,-500.0,0.00016602,2]
[354222897,1740352249780,-500.0,0.00016602,2]
[354222898,1740352249791,-832.13,0.00016602,2]
[354222899,1740352249802,-500.0,0.00016602,2]
[354222900,1740352249813,-500.0,0.00016602,2]
[354222901,1740352249823,-500.0,0.00016602,2]
[354222902,1740352249833,-672.29,0.00016602,2]
[354222903,1740352249843,-2067.35,0.00016602,2]
[354222904,1740352249856,-500.0,0.00016602,2]
[354222905,1740352249867,-165.214594,0.00016602,2]
[354222906,1740352249877,-1586.18,0.00016602,2]
[354222907,1740352249889,-500.0,0.00016602,2]
[354222908,1740352249900,-500.0,0.00016602,2]
[354222909,1740352249911,-892.37,0.00016602,2]
[354222910,1740352249921,-921.94,0.00016602,2]
[354222911,1740352249931,-500.0,0.00016602,2]
[354222912,1740352249941,-510.83,0.00016602,2]
[354222913,1740352249951,-500.0,0.00016602,2]
[354222914,1740352249961,-1032.21,0.00016602,2]
[354222915,1740352249971,-500.0,0.00016602,2]
[354222916,1740352249982,-1265.76,0.00016602,2]
[354222917,1740352249992,-1084.13,0.00016602,2]
[354222918,1740352250003,-165.214594,0.00016602,2]
[354222919,1740352250013,-1186.12,0.00016602,2]
[354222920,1740352250023,-500.0,0.00016602,2]
[354222921,1740352250033,-500.0,0.00016602,2]
[354222922,1740352250042,-3186.94,0.00016602,2]
[354222923,1740352250052,-1768.88,0.00016602,2]
[354222924,1740352250063,-552.85,0.00016602,2]
[354222925,1740352250073,-500.0,0.00016602,2]
[354222926,1740352250083,-500.0,0.00016602,2]
[354222927,1740352250093,-500.0,0.00016602,2]
[354222928,1740352250103,-862.45,0.00016602,2]
[354222929,1740352250114,-200.50844528,0.00016602,2]
[354222930,1740352250124,-665.11,0.00016602,2]
[354222931,1740352250133,-500.0,0.00016602,2]
[354222932,1740352250143,-2475.28,0.00016602,2]
[354222933,1740352250153,-5068.12,0.00016602,2]
[354222934,1740352250164,-1177.98,0.00016602,2]
[354222935,1740352250174,-3622.56,0.00016602,2]
[354222936,1740352250184,-3734.72,0.00016602,2]
[354222937,1740352250194,-889.89,0.00016602,2]
[354222938,1740352250204,-2588.08,0.00016602,2]
[354222939,1740352250214,-2533.98,0.00016602,2]
[354222940,1740352250224,-924.34,0.00016602,2]
[354222941,1740352250234,-500.0,0.00016602,2]
[354222942,1740352250244,-781.8,0.00016602,2]
[354222943,1740352250255,-500.0,0.00016602,2]
[354222944,1740352250268,-1166.1,0.00016602,2]
[354222945,1740352250281,-4285.85,0.00016602,2]
[354222946,1740352250295,-500.0,0.00016602,2]
[354222947,1740352250307,-2462.41,0.00016602,2]
[354222948,1740352250319,-4568.6,0.00016602,2]
[354222949,1740352250330,-500.0,0.00016602,2]
[354222950,1740352250341,-1696.89,0.00016602,2]
[354222951,1740352250354,-500.0,0.00016602,2]
[354222952,1740352250367,-926.06,0.00016602,2]
[354222953,1740352250380,-1964.03,0.00016602,2]
[354222954,1740352250393,-500.0,0.00016602,2]
[354222955,1740352250405,-2278.82,0.00016602,2]
[354222956,1740352250420,-685.04,0.00016602,2]
[354222957,1740352250432,-3750.57,0.00016602,2]
[354222958,1740352250443,-500.0,0.00016602,2]
[354222959,1740352250454,-3546.41,0.00016602,2]
[354222960,1740352250466,-775.21,0.00016602,2]
[354222961,1740352250477,-3288.93,0.00016602,2]
[354222962,1740352250489,-1459.04,0.00016602,2]
[354222963,1740352250502,-2118.82,0.00016602,2]
[354222964,1740352250515,-535.8,0.00016602,2]
[354222965,1740352250526,-500.0,0.00016602,2]
[354222966,1740352250539,-833.15,0.00016602,2]
[354222967,1740352250553,-9191.19,0.00016602,2]
[354222968,1740352250566,-2314.24,0.00016602,2]
[354222969,1740352250578,-2785.73,0.00016602,2]
[354222970,1740352250590,-700.96,0.00016602,2]
[354222971,1740352250601,-1702.77,0.00016602,2]
[354222972,1740352250615,-2364.34,0.00016602,2]
[354222973,1740352250627,-500.0,0.00016602,2]
[354222974,1740352250639,-1000.0,0.00016602,2]
[354222975,1740352250651,-2989.26,0.00016602,2]
[354222976,1740352250662,-3366.6,0.00016602,2]
[354222977,1740352250674,-500.0,0.00016602,2]
[354222978,1740352250685,-1459.69,0.00016602,2]
[354222979,1740352250696,-500.0,0.00016602,2]
[354222980,1740352250709,-3225.6,0.00016602,2]
[354222981,1740352250722,-3436.33,0.00016602,2]
[354222982,1740352250732,-1205.82,0.00016602,2]
[354222983,1740352250743,-500.0,0.00016602,2]
[354222984,1740352250754,-1526.62002794,0.00016602,2]
[354222985,1740352250801,-873.96997206,0.00016602,2]
[354222986,1740352250815,-1472.81,0.00016602,2]
[354222987,1740352250830,-500.0,0.00016602,2]
[354222988,1740352250840,-876.90143756,0.00016602,2]
[354222989,1740352250852,-820.15295765,0.00016602,2]
[354222990,1740352251901,-286.88553038,0.00016438,2]
[354222991,1740352251949,-213.11446962,0.00016438,2]
[354222992,1740352251959,-500.0,0.00016438,2]
[354222993,1740352251970,-500.0,0.00016438,2]
[354222994,1740352251981,-500.0,0.00016438,2]
[354222995,1740352251992,-2344.33,0.00016438,2]
[354222996,1740352252002,-158.2725512,0.00016483,2]
[354222997,1740352252013,-500.0,0.0001652,2]
[354222998,1740352252024,-500.0,0.0001652,2]
[354222999,1740352252034,-2344.33,0.0001652,2]
[354223000,1740352252045,-861.41560479,0.00016602,2]
[354223001,1740352252056,-762.82,0.00016602,2]
[354223002,1740352252067,-1215.63,0.00016602,2]
[354223003,1740352252077,-785.13,0.00016602,2]
[354223004,1740352252088,-2517.84,0.00016602,2]
[354223005,1740352252099,-1042.89,0.00016602,2]
[354223006,1740352252109,-3831.26,0.00016602,2]
[354223007,1740352252120,-500.0,0.00016602,2]
[354223008,1740352252130,-2213.6,0.00016602,2]
[354223009,1740352252141,-2796.6,0.00016602,2]
[354223010,1740352252151,-2081.63,0.00016602,2]
[354223011,1740352252161,-2653.58,0.00016602,2]
[354223012,1740352252172,-500.0,0.00016602,2]
[354223013,1740352252182,-4652.21,0.00016602,2]
[354223014,1740352252193,-6178.86,0.00016602,2]
[354223015,1740352252204,-500.0,0.00016602,2]
[354223016,1740352252215,-500.0,0.00016602,2]
[354223017,1740352252226,-500.0,0.00016602,2]
[354223018,1740352252237,-1807.9,0.00016602,2]
[354223019,1740352252248,-500.0,0.00016602,2]
[354223020,1740352252259,-500.0,0.00016602,2]
[354223021,1740352252270,-545.5,0.00016602,2]
[354223022,1740352252281,-1156.85,0.00016602,2]
[354223023,1740352252293,-183.04495538,0.00016602,2]
[354223024,1740352252368,-316.95504462,0.00016602,2]
[354223025,1740352252384,-958.52,0.00016602,2]
[354223026,1740352252395,-556.1476151,0.00016602,2]
[354223027,1740352252406,-500.0,0.00016602,2]
[354223028,1740352252418,-1774.99330108,0.00016602,2]
[354223029,1740352252437,-2267.99669892,0.00016602,2]
[354223030,1740352252448,-2467.29,0.00016602,2]
[354223031,1740352252459,-2150.89,0.00016602,2]
[354223032,1740352252470,-500.0,0.00016602,2]
[354223033,1740352252481,-500.0,0.00016602,2]
[354223034,1740352252492,-1525.31,0.00016602,2]
[354223035,1740352252503,-500.0,0.00016602,2]
[354223036,1740352252514,-1572.93,0.00016602,2]
[354223037,1740352252525,-1604.93,0.00016602,2]
[354223038,1740352252535,-740.21,0.00016602,2]
[354223039,1740352252548,-500.0,0.00016602,2]
[354223040,1740352252558,-609.89,0.00016602,2]
[354223041,1740352252569,-500.0,0.00016602,2]
[354223042,1740352252579,-910.04,0.00016602,2]
[354223043,1740352252589,-996.78,0.00016602,2]
[354223044,1740352252600,-1324.6,0.00016602,2]
[354223045,1740352252611,-3113.04,0.00016602,2]
[354223046,1740352252621,-778.7,0.00016602,2]
[354223047,1740352252632,-3359.47,0.00016602,2]
[354223048,1740352252642,-500.0,0.00016602,2]
[354223049,1740352252653,-2801.61,0.00016602,2]
[354223050,1740352252664,-500.0,0.00016602,2]
[354223051,1740352252675,-3336.6,0.00016602,2]
[354223052,1740352252685,-500.0,0.00016602,2]
[354223053,1740352252696,-1067.12,0.00016602,2]
[354223054,1740352252706,-364.64267394,0.00016602,2]
[354223055,1740352252717,-732.09,0.00016602,2]
[354223056,1740352252728,-500.0,0.00016602,2]
[354223057,1740352252740,-1406.23,0.00016602,2]
[354223058,1740352252750,-2681.14,0.00016602,2]
[354223059,1740352252761,-500.0,0.00016602,2]
[354223060,1740352252772,-1451.44,0.00016602,2]
[354223061,1740352252784,-1051.59,0.00016602,2]
[354223062,1740352252795,-500.0,0.00016602,2]
[354223063,1740352252806,-500.0,0.00016602,2]
[354223064,1740352252817,-500.0,0.00016602,2]
[354223065,1740352252828,-2468.85,0.00016602,2]
[354223066,1740352252839,-500.0,0.00016602,2]
[354223067,1740352252848,-500.0,0.00016602,2]
[354223068,1740352252858,-422.40203021,0.00016602,2]
[354223069,1740352252868,-4015.13,0.00016602,2]
[354223070,1740352252877,-500.0,0.00016602,2]
[354223071,1740352252887,-500.0,0.00016602,2]
[354223072,1740352252897,-3236.76,0.00016602,2]
[354223073,1740352252906,-3130.1,0.00016602,2]
[354223074,1740352252916,-2520.94,0.00016602,2]
[354223075,1740352252926,-1158.0,0.00016602,2]
[354223076,1740352252935,-2228.2,0.00016602,2]
[354223077,1740352252944,-500.0,0.00016602,2]
[354223078,1740352252954,-500.0,0.00016602,2]
[354223079,1740352252963,-2193.73,0.00016602,2]
[354223080,1740352252973,-1207.99,0.00016602,2]
[354223081,1740352252982,-500.0,0.00016602,2]
[354223082,1740352252991,-500.0,0.00016602,2]
[354223083,1740352253000,-500.0,0.00016602,2]
[354223084,1740352253010,-2091.05,0.00016602,2]
[354223085,1740352253019,-534.56390554,0.00016602,2]
[354223086,1740352253029,-2144.88,0.00016602,2]
[354223087,1740352253038,-777.04,0.00016602,2]
[354223088,1740352253047,-2204.27,0.00016602,2]
[354223089,1740352253057,-3170.34,0.00016602,2]
[354223090,1740352253066,-500.0,0.00016602,2]
[354223091,1740352253076,-4039.76,0.00016602,2]
[354223092,1740352253086,-855.37,0.00016602,2]
[354223093,1740352253095,-1360.64,0.00016602,2]
[354223094,1740352253104,-1197.29,0.00016602,2]
[354223095,1740352253114,-4488.35,0.00016602,2]
[354223096,1740352253123,-2797.37,0.00016602,2]
[354223097,1740352253132,-500.0,0.00016602,2]
[354223098,1740352253142,-500.0,0.00016602,2]
[354223099,1740352253151,-1555.96,0.00016602,2]
[354223100,1740352253160,-500.0,0.00016602,2]
[354223101,1740352253170,-800.04,0.00016602,2]
[354223102,1740352253180,-521.23393049,0.00016602,2]
[354223103,1740352253189,-165.214596,0.00016602,2]
[354223104,1740352253199,-622.06,0.00016602,2]
[354223105,1740352253208,-1755.06,0.00016602,2]
[354223106,1740352253218,-500.0,0.00016602,2]
[354223107,1740352253229,-1867.84,0.00016602,2]
[354223108,1740352253238,-500.0,0.00016602,2]
[354223109,1740352253248,-3307.92,0.00016602,2]
[354223110,1740352253771,-3319.93,0.00016602,2]
[354223111,1740352253795,-2169.9,0.00016602,2]
[354223112,1740352253812,-500.0,0.00016602,2]
[354223113,1740352253828,-1462.86,0.00016602,2]
[354223114,1740352253840,-1440.74,0.00016602,2]
[354223115,1740352253849,-1189.07,0.00016602,2]
[354223116,1740352253859,-2086.64,0.00016602,2]
[354223117,1740352253869,-878.02,0.00016602,2]
[354223118,1740352253878,-2211.15,0.00016602,2]
[354223119,1740352253887,-619.15,0.00016602,2]
[354223120,1740352253897,-1624.88,0.00016602,2]
[354223121,1740352253906,-927.36,0.00016602,2]
[354223122,1740352253915,-500.0,0.00016602,2]
[354223123,1740352253925,-500.0,0.00016602,2]
[354223124,1740352253935,-2344.33,0.00016602,2]
[354223125,1740352253944,-2192.28354667,0.00016612,2]
[354223126,1740352253954,-242.0,0.00016646,2]
[354223127,1740352253963,-1577.0,0.00016667,2]
[354223128,1740352253974,-245.39,0.00016668,2]
[354223129,1740352253983,-167.0,0.00016668,2]
[354223130,1740352253993,-167.81251703,0.00016668,2]
[354223131,1740352254002,-151.11005111,0.00016673,2]
[354223132,1740352254011,-266.41588234,0.00016673,2]
[354223133,1740352254021,-500.45602141,0.00016673,2]
[354223134,1740352254031,-366.69906878,0.00016673,2]
[354223135,1740352254040,-156.47320584,0.00016673,2]
[354223136,1740352254050,-160.59403321,0.00016673,2]
[354223137,1740352254059,-500.0,0.00016673,2]
[354223138,1740352254070,-261.76970257,0.00016673,2]
[354223139,1740352254080,-458.52370696,0.00016683,5]
[354223140,1740352254089,-697.18,0.00016683,2]
[354223141,1740352254098,-893.59,0.00016684,2]
[354223142,1740352254108,-500.0,0.00016684,2]
[354223143,1740352254118,-500.0,0.00016684,2]
[354223144,1740352254127,-551.7,0.00016684,2]
[354223145,1740352254137,-699.78,0.00016684,2]
[354223146,1740352254146,-500.0,0.00016684,2]
[354223147,1740352254155,-500.0,0.00016684,2]
[354223148,1740352254166,-500.0,0.00016684,2]
[354223149,1740352254175,-500.0,0.00016684,2]
[354223150,1740352254184,-818.11,0.00016684,2]
[354223151,1740352254194,-500.0,0.00016684,2]
[354223152,1740352254203,-398.76690664,0.00016684,2]
[354223153,1740352254212,-500.0,0.00016684,2]
[354223154,1740352254222,-500.0,0.00016684,2]
[354223155,1740352254232,-500.0,0.00016684,2]
[354223156,1740352254241,-500.0,0.00016684,2]
[354223157,1740352254251,-500.0,0.00016684,2]
[354223158,1740352254260,-500.0,0.00016684,2]
[354223159,1740352254270,-984.17,0.00016684,2]
[354223160,1740352254279,-978.85,0.00016684,2]
[354223161,1740352254289,-504.97,0.00016684,2]
[354223162,1740352254298,-500.0,0.00016684,2]
[354223163,1740352254308,-500.0,0.00016684,2]
[354223164,1740352254317,-500.0,0.00016684,2]
[354223165,1740352254326,-500.0,0.00016684,2]
[354223166,1740352254336,-500.0,0.00016684,2]
[354223167,1740352254345,-500.0,0.00016684,2]
[354223168,1740352254354,-1000.79,0.00016684,2]
[354223169,1740352254364,-500.0,0.00016684,2]
[354223170,1740352254375,-500.0,0.00016684,2]
[354223171,1740352254388,-500.0,0.00016684,2]
[354223172,1740352254397,-658.04,0.00016684,2]
[354223173,1740352254407,-1056.07,0.00016684,2]
[354223174,1740352254416,-815.39,0.00016684,2]